[Event "Emanuel Lasker Open 2017"]
[Site "Gorzow"]
[Date "2017.06.18"]
[Round "7"]
[White "Bartnicki, Pawel"]
[Black "Knapik, Julia"]
[Result "1/2-1/2"]
[ECO "D55"]
[WhiteElo "2078"]
[BlackElo "1627"]
[Annotator "NA RC"]
[PlyCount "85"]
[EventDate "2017.??.??"]
[EventType "swiss"]
[EventCountry "POL"]
[SourceTitle "playchess.com"]
[Source "ChessBase"]
[SourceQuality "1"]
[TimeControl "40/5400+30:1800+30"]

{[%evp 10,85,20,17,7,11,13,0,14,0,0,9,32767,32767,32767,10,32767,7,9,18,32767,32767,32767,0,8,14,7,1,32767,0,4,0,-1,0,32767,32767,32767,32767,32767,32767,32767,32767,32767,32767,32767,45,50,32767,32767,32767,37,32767,29,20,21,32767,32767,32767,32767,32767,32767,32767,32767,32767,32767,32767,32767,32767,0,0,84,34,20,0,16,0,11,0]} 1. d4 {[%emt 0:00:00]} d5 {[%emt 0:00:07]} 2. c4 {[%emt 0:00:00]} e6 {[%emt 0:00:08]} 3. Nc3 {[%emt 0:00:00]} Nf6 {[%emt 0:00:11]} 4. Bg5 {[%emt 0:00:05]} Be7 {[%emt 0:00:16]} 5. e3 {[%emt 0:00:07]} O-O {[%emt 0:02:05]} 6. Nf3 {[%emt 0:00:07]} b6 {[%emt 0:00:19]} 7. Rc1 {[%emt 0:03:21]} Bb7 {[%emt 0:04:49]} 8. Bd3 {[%emt 0:01:40]} dxc4 {[%emt 0:02:45]} 9. Bxc4 {[%emt 0:01:59]} Nbd7 {[%emt 0:02:10]} 10. O-O {[%emt 0:03:11]} h6 {[%emt 0:06:25]} 11. Bh4 {[%emt 0:02:50]} Ne4 {[%emt 0:01:29]} 12. Bxe7 {[%emt 0:02:18] LiveBook: 5 Games D58: Queen's Gambit Declined: Tartakower Defence} Qxe7 {[%emt 0:00:18]} 13. Nxe4 {[%emt 0:18:09]} Bxe4 {[%emt 0:00:11]} 14. Bd3 {[%emt 0:02:51]} (14. Bb5 Nb8 15. Rc3 Rc8 16. Qe2 a6 17. Ba4 Qb4 18. Bb3 Nd7 19. Rfc1 c5 {½-½ (32) Lyrberg,P (2573)-Akesson,R (2540) Sweden 2005}) 14... Bxd3 {[%emt 0:00:56]} 15. Qxd3 {[%emt 0:05:46]} c5 {[%emt 0:00:17]} 16. Qa3 {[%emt 0:04:01]} Rfe8 $146 {[%emt 0:03:53]} ({Predecessor:} 16... Rfc8 17. Rc2 Qe8 18. Rfc1 cxd4 19. Nxd4 Nf6 {½-½ (19) Robatsch,K (2415)-Eolian,L (2355) Yerevan 1982}) 17. Rfd1 {[%emt 0:00:41]} e5 {[%emt 0:04:42]} 18. dxe5 {[%emt 0:13:59]} Nxe5 {[%emt 0:02:21]} 19. Nxe5 {[%emt 0:00:08]} Qxe5 {[%emt 0:00:12]} 20. Rd7 {[%emt 0:00:46]} Red8 {[%emt 0:02:27]} 21. Rcd1 {[%emt 0:05:04]} Rxd7 {[%emt 0:04:00]} 22. Rxd7 {[%emt 0:00:08]} Qf5 {[%emt 0:00:11]} 23. Qd3 {[%emt 0:00:04]} Qxd3 {[%emt 0:00:19]} 24. Rxd3 {[%emt 0:00:05]} Re8 {[%emt 0:03:36]} 25. Rd7 {[%emt 0:03:24]} a5 {[%emt 0:00:29]} 26. Rb7 {[%emt 0:01:16]} Rd8 {[%emt 0:02:54]} 27. Kf1 {[%emt 0:00:26]} Rd6 {[%emt 0:00:08]} 28. Ke2 {[%emt 0:00:11]} g6 {[%emt 0:00:23]} 29. a4 {[%emt 0:00:51]} Kg7 {[%emt 0:00:58]} 30. g4 {[%emt 0:02:57]} g5 {[%emt 0:01:46]} 31. h3 {[%emt 0:03:41]} Kg6 {[%emt 0:01:04]} 32. b3 {[%emt 0:08:24]} Kg7 {[%emt 0:02:28]} 33. Kf3 {[%emt 0:04:28]} Kf6 {[%emt 0:01:30]} 34. Ke4 {[%emt 0:02:22]} Ke6 {[%emt 0:00:55]} 35. f4 {[%emt 0:02:35]} gxf4 {[%emt 0:01:32]} 36. Kxf4 {[%emt 0:00:05]} Kf6 {[%emt 0:00:44]} 37. h4 {[%emt 0:02:56]} Rc6 {[%emt 0:03:53]} 38. e4 {[%emt 0:03:20]} Kg7 {[%emt 0:02:48]} 39. Kf5 {[%emt 0:01:11]} Rf6+ {[%emt 0:02:10]} (39... c4 $11 40. bxc4 Rxc4) 40. Ke5 {[%emt 0:00:00]} Rg6 $1 {[%emt 0:00:55]} 41. Kf4 {[%emt 0:12:43]} Rf6+ {[%emt 0:01:45]} 42. Ke5 {[%emt 0:00:25]} Rg6 {[%emt 0:00:18]} 43. h5 $11 1/2-1/2

[Event "Emanuel Lasker Open 2017"]
[Site "Gorzow"]
[Date "2017.06.18"]
[Round "7"]
[White "Michalski, Filip"]
[Black "Lukasiewicz, Krzysztof"]
[Result "0-1"]
[ECO "D53"]
[WhiteElo "2028"]
[BlackElo "2098"]
[Annotator "NA RC"]
[PlyCount "80"]
[EventDate "2017.??.??"]
[EventType "swiss"]
[EventCountry "POL"]
[SourceTitle "playchess.com"]
[Source "ChessBase"]
[SourceQuality "1"]
[TimeControl "40/5400+30:1800+30"]

{[%evp 9,80,22,10,12,32767,32767,32767,23,32767,17,39,30,35,34,41,27,32767,32767,32767,12,32767,32767,0,32767,-11,-10,8,0,0,-18,-29,-10,-29,-41,-27,-79,32767,-74,-80,32767,32767,-106,-111,-193,-197,-204,-145,-360,32767,32767,-165,-170,-116,-270,-262,-264,-248,-287,-293,-284,-309,-502,-378,-479,-564,32767,-460,-676,-749,-903,-977,-2361,-1406]} 1. d4 {[%emt 0:04:56]} d5 {[%emt 0:00:05]} 2. c4 {[%emt 0:00:11]} e6 {[%emt 0:00:03]} 3. Nc3 {[%emt 0:00:18]} Nf6 {[%emt 0:00:02]} 4. Bg5 {[%emt 0:01:17]} Be7 {[%emt 0:00:04]} 5. cxd5 {[%emt 0:00:20]} exd5 {[%emt 0:00:53]} 6. Qc2 {[%emt 0:00:19]} c6 {[%emt 0:00:36]} 7. e3 {[%emt 0:00:16]} Nbd7 {[%emt 0:00:09]} 8. Bd3 {[%emt 0:00:11]} Nh5 {[%emt 0:00:25]} 9. Bxe7 {[%emt 0:01:01] LiveBook: 589 Games} Qxe7 {[%emt 0:00:05]} 10. O-O-O {[%emt 0:04:16]} Nb6 {[%emt 0:05:01]} 11. h3 {[%emt 0:00:25] D36: Queen's Gambit Declined: Exchange Variation: Main line (5 Bg5 c6 6 Qc2)} g6 {[%emt 0:01:11]} 12. g4 {[%emt 0:01:55]} (12. Nf3 Be6 13. Kb1 O-O-O 14. Nd2 Ng7 15. g4 Kb8 16. Nb3 h5 17. f3 Bc8 18. Qf2 hxg4 19. hxg4 Ne6 20. f4 {0-1 (75) Nakamura,H (2793)-Onischuk,A (2667) Saint Louis 2017}) 12... Ng7 {[%emt 0:01:11]} 13. Nf3 {[%emt 0:04:55]} Be6 {[%emt 0:01:39]} 14. Kb1 {[%emt 0:05:26]} O-O-O {[%emt 0:02:44]} 15. Ka1 {[%emt 0:01:08]} Kb8 {[%emt 0:03:44]} 16. Rc1 {[%emt 0:00:41]} h5 $146 {[%emt 0:07:00]} ({Predecessor:} 16... Ne8 17. Rcg1 Nd6 18. h4 h5 19. g5 Bf5 20. Bxf5 Nxf5 {0-1 (40) Duppel,M (2440)-Borriss,M (2442) Germany 2003}) 17. g5 {[%emt 0:13:14]} Bf5 {[%emt 0:01:30]} 18. Bxf5 {[%emt 0:01:04]} Nxf5 {[%emt 0:00:05]} 19. Na4 {[%emt 0:05:27]} Nxa4 {[%emt 0:10:29]} 20. Qxa4 {[%emt 0:00:12]} Nd6 {[%emt 0:01:25]} 21. Qb4 {[%emt 0:06:10]} Ka8 {[%emt 0:05:12]} 22. Rhg1 {[%emt 0:02:28]} (22. Rh2 $11 {keeps the balance.}) 22... Qe6 {[%emt 0:12:37]} 23. h4 {[%emt 0:13:06]} Qf5 {[%emt 0:01:22]} 24. Ne5 {[%emt 0:00:32]} Qxf2 {[%emt 0:00:53]} 25. Rgf1 {[%emt 0:01:11]} Qxh4 {[%emt 0:00:42]} ({Don't play} 25... Qxe3 $6 26. Rce1 $11) 26. Nxf7 {[%emt 0:01:29]} (26. Qc5 $17 {was necessary.}) 26... Nxf7 {[%emt 0:00:05]} 27. Rxf7 {[%emt 0:00:10]} Rb8 {[%emt 0:00:12]} 28. a4 $2 {[%emt 0:02:16]} (28. Qe7 $17 {might work better.}) 28... Qxg5 {[%emt 0:06:07]} 29. Rc3 {[%emt 0:21:45]} Qh6 {[%emt 0:04:06]} (29... Qd8 $142 30. Rc1 h4) 30. Qe7 {[%emt 0:03:19]} (30. Rxc6 $17 Qxe3 31. Rcc7) 30... Rhf8 {[%emt 0:01:51]} 31. Rh7 {[%emt 0:01:13]} (31. Rg7 $142) 31... Rf1+ {[%emt 0:00:13]} 32. Ka2 {[%emt 0:00:16]} Qf8 {[%emt 0:00:03]} 33. a5 {[%emt 0:04:28]} Qxe7 {[%emt 0:00:47]} 34. Rxe7 {[%emt 0:00:04]} a6 {[%emt 0:01:37]} 35. b4 $2 {[%emt 0:00:29]} (35. e4 {keeps fighting.}) 35... Rbf8 {[%emt 0:02:39]} 36. Kb3 {[%emt 0:00:43]} h4 {[%emt 0:01:13]} 37. e4 {[%emt 0:00:38]} dxe4 {[%emt 0:00:51]} 38. d5 {[%emt 0:00:16]} cxd5 {[%emt 0:01:24]} 39. b5 {[%emt 0:00:12]} Rb1+ {[%emt 0:00:09]} 40. Ka4 {[%emt 0:00:00]} Rxb5 $19 {[%emt 0:00:11]} 0-1